bitfinex/quotes_BTCUSD_20251001
["timestamp","ask_amount","ask_price","bid_price","bid_amount"]
[1759362388383,0.11548213,118430.0,118420.0,0.16935653]
[1759362388585,0.35740213,118430.0,118420.0,0.16935653]
[1759362392522,0.35740213,118430.0,118410.0,0.1829434]
[1759362392702,0.35441213,118430.0,118420.0,0.16889039]
[1759362392916,0.32904,118430.0,118420.0,0.16889039]
[1759362393136,0.08712,118430.0,118410.0,0.18302229]
[1759362393357,0.08835,118420.0,118410.0,0.18302229]
[1759362393573,0.09036,118420.0,118410.0,0.18302229]
[1759362393939,0.11573428,118420.0,118410.0,0.18302229]
[1759362394139,0.1315219,118420.0,118410.0,0.18302229]
[1759362394429,0.3734419,118420.0,118410.0,0.18302229]
[1759362395249,0.38133364,118420.0,118410.0,0.18302229]
[1759362397284,0.13941364,118420.0,118410.0,0.18302229]
[1759362397686,0.28353364,118420.0,118410.0,0.18302229]
[1759362400892,0.38133364,118420.0,118410.0,0.18302229]
[1759362402252,0.13941364,118420.0,118410.0,0.18302229]
[1759362402479,0.38133364,118420.0,118410.0,0.18302229]
[1759362403680,0.39952112,118420.0,118410.0,0.18302229]
[1759362416612,0.39952112,118420.0,118410.0,0.219056]
[1759362416802,0.39952112,118420.0,118410.0,0.18302229]
[1759362417551,0.15760112,118420.0,118410.0,0.18302229]
[1759362417777,0.13941364,118420.0,118410.0,0.18302229]
[1759362417978,0.29881364,118420.0,118410.0,0.18302229]
[1759362418408,0.13941364,118420.0,118410.0,0.18302229]
[1759362418610,0.38133364,118420.0,118410.0,0.18302229]
[1759362418868,0.39952112,118420.0,118410.0,0.18302229]
[1759362420667,0.39955147,118420.0,118410.0,0.18302229]
[1759362424762,0.39951147,118420.0,118410.0,0.18302229]
[1759362424981,0.15763147,118420.0,118410.0,0.18302229]
[1759362425146,0.04908399,118420.0,118410.0,0.18302229]
[1759362425369,0.02370971,118420.0,118410.0,0.18302229]
[1759362426196,0.01818748,118450.0,118440.0,0.16886187]
[1759362426369,0.57041748,118460.0,118450.0,0.16884761]
[1759362426579,0.65764748,118460.0,118450.0,0.16884761]
[1759362426826,0.18301478,118460.0,118450.0,0.16884761]
[1759362427231,0.17318417,118460.0,118450.0,0.16884761]
[1759362427668,0.17365034,118460.0,118450.0,0.16884761]
[1759362427817,0.17365034,118460.0,118450.0,0.18084312]
[1759362428440,0.02583347,118460.0,118450.0,0.18084312]
[1759362428612,0.00046617,118460.0,118450.0,0.42272312]
[1759362429257,0.00046617,118460.0,118450.0,0.18084312]
[1759362429465,0.00046617,118460.0,118450.0,0.42272312]
[1759362429870,0.00046617,118460.0,118450.0,0.43137803]
[1759362431310,0.00046617,118460.0,118450.0,0.49441091]
[1759362432929,0.00046617,118460.0,118450.0,0.52456281]
[1759362435010,0.00046617,118460.0,118450.0,0.60967281]
[1759362436688,0.00046617,118460.0,118450.0,0.36779281]
[1759362437132,0.00046617,118460.0,118450.0,0.3591379]
[1759362437344,0.00046617,118460.0,118450.0,0.69719963]
[1759362440039,0.00046617,118460.0,118450.0,0.6008979]
[1759362440235,0.00046617,118460.0,118450.0,0.9520379]
[1759362440639,0.00046617,118460.0,118450.0,0.6224379]
[1759362440841,0.00046617,118460.0,118450.0,0.9520379]
[1759362442037,0.00046617,118460.0,118450.0,0.6224379]
[1759362442239,0.00555617,118460.0,118450.0,0.9519979]
[1759362442555,0.00046617,118460.0,118450.0,0.9519979]
[1759362443789,0.00046617,118460.0,118450.0,0.8641579]
[1759362443988,0.00046617,118460.0,118450.0,0.9519979]
[1759362444339,0.00046617,118460.0,118450.0,0.6224379]
[1759362444547,0.00046617,118460.0,118450.0,0.9519979]
[1759362457187,0.00046617,118460.0,118450.0,0.8640779]
[1759362457395,0.00046617,118460.0,118450.0,0.9519179]
[1759362459719,0.00046617,118460.0,118450.0,0.8640779]
[1759362459921,0.00046617,118460.0,118450.0,0.9519179]
[1759362460463,0.00046617,118460.0,118450.0,0.6886179]
[1759362465201,0.00833571,118460.0,118450.0,0.6886179]
[1759362467046,0.00833571,118460.0,118450.0,0.3591379]
[1759362467253,0.00833571,118460.0,118450.0,0.6885779]
[1759362468500,0.00833571,118460.0,118450.0,0.6007379]
[1759362468906,0.00833571,118460.0,118450.0,0.6885779]
[1759362469945,0.00833571,118460.0,118450.0,0.9518779]
[1759362472350,0.00833571,118460.0,118450.0,0.6224379]
[1759362472571,0.01355571,118460.0,118450.0,0.9518779]
[1759362472800,0.01355571,118460.0,118450.0,0.6224379]
[1759362473037,0.00833571,118460.0,118450.0,0.9518779]
[1759362473674,0.00833571,118460.0,118450.0,0.6224379]
[1759362473903,0.00833571,118460.0,118450.0,0.9518779]
[1759362474855,0.00838231,118460.0,118450.0,0.9518779]
[1759362477247,0.00838231,118460.0,118450.0,0.6224379]
[1759362477466,0.00046617,118460.0,118450.0,0.9518379]
[1759362477672,0.00046617,118460.0,118450.0,0.42348992]
[1759362477909,0.00046617,118460.0,118450.0,0.92173753]
[1759362479930,0.00046617,118460.0,118450.0,1.26173753]
[1759362480114,0.0081302,118480.0,118470.0,0.19897101]
[1759362480346,0.0081302,118480.0,118470.0,0.7039099]
[1759362482707,0.00021366,118480.0,118470.0,0.7039099]
[1759362487167,1e-08,118480.0,118470.0,1.1540199]
[1759362487587,1e-08,118480.0,118470.0,1.2417799]
[1759362487790,1e-08,118480.0,118470.0,0.9124599]
[1759362487997,1e-08,118480.0,118470.0,1.2417799]
[1759362488619,1e-08,118480.0,118470.0,0.8874599]
[1759362488835,0.00522001,118480.0,118470.0,0.8874599]
[1759362489051,0.00522001,118480.0,118470.0,0.432198]
[1759362489275,0.00522001,118480.0,118470.0,0.519998]
[1759362489489,0.00522001,118480.0,118470.0,0.761478]
[1759362489703,0.00522001,118480.0,118470.0,0.168898]
[1759362489915,0.09033001,118480.0,118470.0,7.889e-05]
[1759362490117,0.43033001,118480.0,118470.0,0.168898]
[1759362490330,0.43823544,118480.0,118470.0,0.168898]
[1759362490532,0.45645049,118480.0,118470.0,0.168898]
[1759362491386,0.45645123,118480.0,118470.0,0.168898]
[1759362492025,0.43823618,118480.0,118470.0,0.168898]
[1759362492860,0.45645174,118480.0,118470.0,0.168898]
[1759362493091,0.43823618,118480.0,118470.0,0.168898]
[1759362494991,0.46359819,118480.0,118470.0,0.168898]
[1759362495424,0.03848819,118480.0,118470.0,0.168898]
[1759362496089,0.03848819,118480.0,118470.0,0.410378]
[1759362496298,0.12359819,118480.0,118470.0,0.168898]
[1759362500427,0.03848719,118480.0,118470.0,0.168898]
[1759362501866,0.03848719,118480.0,118470.0,0.410378]
[1759362502575,0.03848719,118480.0,118470.0,0.168898]
[1759362508265,0.03326719,118480.0,118470.0,0.18577991]
[1759362508477,0.03521719,118480.0,118470.0,0.18577991]
[1759362508689,0.03833719,118480.0,118470.0,0.18577991]
[1759362509642,0.03833708,118480.0,118470.0,0.18577991]
[1759362511869,0.03833708,118480.0,118470.0,0.168898]
[1759362514492,0.03326708,118480.0,118470.0,0.1990499]
[1759362514695,1e-08,118480.0,118470.0,0.1990499]
[1759362518531,1e-08,118480.0,118470.0,0.3719999]
[1759362519188,1e-08,118480.0,118470.0,0.7119999]
[1759362519803,1e-08,118480.0,118470.0,0.6241599]
[1759362519962,1e-08,118480.0,118470.0,0.9533999]
[1759362521260,1e-08,118480.0,118470.0,0.6241599]
[1759362521464,1e-08,118480.0,118470.0,0.9533999]
[1759362522299,1e-08,118480.0,118470.0,0.96192121]
[1759362523498,1e-08,118480.0,118470.0,1.22522121]
[1759362524014,1e-08,118480.0,118470.0,0.8874599]
[1759362524352,1e-08,118480.0,118470.0,1.2166199]
[1759362525362,1e-08,118480.0,118470.0,1.22491447]
[1759362526079,1e-08,118480.0,118470.0,0.89575447]
[1759362526299,1e-08,118480.0,118470.0,1.22491447]
[1759362527774,1e-08,118480.0,118470.0,0.8874599]
[1759362528135,1e-08,118480.0,118470.0,1.2166199]
[1759362528889,1e-08,118480.0,118470.0,0.8874599]
[1759362529122,1e-08,118480.0,118470.0,1.2166199]
[1759362532011,1e-08,118480.0,118470.0,1.1287799]
[1759362532214,1e-08,118480.0,118470.0,1.22489026]
[1759362534500,1e-08,118480.0,118470.0,1.13709026]
[1759362534759,1e-08,118480.0,118470.0,1.22489026]
[1759362536690,0.00524001,118480.0,118470.0,1.22489026]
[1759362537142,1e-08,118480.0,118470.0,1.22489026]
[1759362538502,1e-08,118480.0,118470.0,0.89577026]
[1759362538707,1e-08,118480.0,118470.0,1.22489026]
[1759362539451,1e-08,118480.0,118470.0,1.2165799]
[1759362539652,1e-08,118480.0,118470.0,1.22486841]
[1759362540091,1e-08,118480.0,118470.0,1.24986841]
[1759362540856,0.00524001,118480.0,118470.0,0.89574841]
[1759362541097,0.00524001,118480.0,118470.0,1.22486841]
[1759362541293,1e-08,118480.0,118470.0,1.22486841]
[1759362544849,1e-08,118480.0,118470.0,1.02581851]
[1759362545057,1e-08,118480.0,118470.0,1.16455113]
[1759362545423,1e-08,118480.0,118470.0,1.18955113]
[1759362546919,1e-08,118480.0,118470.0,1.21970303]
[1759362550246,1e-08,118480.0,118470.0,1.66600303]
[1759362550816,0.00524001,118480.0,118470.0,1.64096303]
[1759362551007,0.00524001,118480.0,118470.0,1.27344262]
[1759362551225,0.00524001,118480.0,118470.0,1.60252262]
[1759362551697,0.00524001,118480.0,118470.0,1.61091942]
[1759362551895,0.00524001,118480.0,118470.0,1.21841911]
[1759362552179,0.00524001,118480.0,118470.0,1.10119911]
[1759362553293,0.00524001,118480.0,118470.0,0.76119911]
[1759362554427,0.00214001,118480.0,118470.0,0.76119911]
[1759362555367,1e-08,118480.0,118470.0,0.76119911]
[1759362559963,1e-08,118480.0,118470.0,0.84630911]
[1759362564555,1e-08,118480.0,118470.0,0.87646101]
[1759362565407,1e-08,118480.0,118470.0,0.61316101]
[1759362565811,1e-08,118480.0,118470.0,0.63816101]
[1759362569803,1e-08,118480.0,118470.0,0.97816101]
[1759362570007,1e-08,118480.0,118470.0,0.97808101]
[1759362571046,1e-08,118480.0,118470.0,1.68768101]
[1759362572310,1e-08,118480.0,118470.0,1.35868101]
[1759362572514,1e-08,118480.0,118470.0,1.68768101]
[1759362577956,0.0855243,118530.0,118500.0,0.16875314]
[1759362577957,0.0632919,118530.0,118500.0,0.16875314]
[1759362578188,0.41119484,118530.0,118520.0,0.16874789]
[1759362578392,0.07333484,118530.0,118520.0,0.16874789]
[1759362578593,0.07333484,118530.0,118520.0,0.40990789]
[1759362578800,0.07333484,118530.0,118520.0,0.16874789]
[1759362579050,0.07333484,118530.0,118520.0,0.47297949]
[1759362579507,0.07338148,118530.0,118520.0,0.23181949]
[1759362579709,0.07338148,118530.0,118520.0,0.47297949]
[1759362579908,0.08173359,118530.0,118520.0,0.47297949]
[1759362581182,0.08173359,118530.0,118520.0,0.23181949]
[1759362581393,0.08173359,118530.0,118520.0,0.47297949]
[1759362583932,0.08173359,118530.0,118520.0,0.23181949]
[1759362584147,0.08173359,118530.0,118520.0,0.47297949]
[1759362584358,0.08280141,118530.0,118520.0,0.23181949]
[1759362584554,0.08280141,118530.0,118520.0,0.47297949]
[1759362585158,0.08280141,118530.0,118520.0,0.23181949]
[1759362585364,0.08280141,118530.0,118520.0,0.47297949]
[1759362586739,0.10814996,118530.0,118520.0,0.47297949]
[1759362587980,0.10814996,118530.0,118520.0,0.23181949]
[1759362588117,0.10814996,118530.0,118520.0,0.47297949]
[1759362588976,0.0744493,118530.0,118520.0,0.47297949]
[1759362589385,0.0744493,118530.0,118520.0,0.23181949]
[1759362589872,0.0744493,118530.0,118520.0,0.47293949]
[1759362590515,0.08299318,118530.0,118520.0,0.47293949]
[1759362590726,0.08299318,118530.0,118520.0,0.23181949]
[1759362590939,0.08299318,118530.0,118520.0,0.47293949]
[1759362591364,0.10834027,118530.0,118520.0,0.23181949]
[1759362591571,0.10834027,118530.0,118520.0,0.47293949]
[1759362594197,0.10834027,118530.0,118520.0,0.23181949]
[1759362594410,0.10834027,118530.0,118520.0,0.47293949]
[1759362594596,0.10834027,118530.0,118520.0,0.23181949]
[1759362594859,0.10834027,118530.0,118520.0,0.47293949]
[1759362596797,0.10834027,118530.0,118520.0,0.23181949]
[1759362596996,0.44834027,118530.0,118520.0,0.47293949]
[1759362601151,0.44834027,118530.0,118520.0,0.23181949]
[1759362601398,0.4665475,118530.0,118520.0,0.47293949]
[1759362602338,0.4665475,118530.0,118520.0,0.23181949]
[1759362602606,0.4665475,118530.0,118520.0,0.47293949]
[1759362608507,0.4665475,118530.0,118520.0,0.47289949]
[1759362610375,0.4665475,118530.0,118520.0,0.23181949]
[1759362610612,0.4665475,118530.0,118520.0,0.47289949]
[1759362613509,0.4665475,118530.0,118520.0,0.23181949]
[1759362613726,0.4665475,118530.0,118520.0,0.47289949]
[1759362613936,0.4665475,118530.0,118520.0,0.23181949]
[1759362614147,0.4665475,118530.0,118520.0,0.47289949]
[1759362615221,0.4665475,118530.0,118520.0,0.23181949]
[1759362615432,0.4665475,118530.0,118520.0,0.47289949]
[1759362618031,0.7076275,118530.0,118520.0,0.47289949]
[1759362618673,0.7927375,118530.0,118520.0,0.23181949]
[1759362618896,0.7927375,118530.0,118520.0,0.47289949]
[1759362622468,0.7927375,118530.0,118520.0,0.23181949]
[1759362622680,0.7927375,118530.0,118520.0,0.47285949]
[1759362623136,0.11274362,118530.0,118520.0,0.47285949]
[1759362623356,0.0691893,118530.0,118520.0,0.47285949]
[1759362624638,0.0743593,118530.0,118520.0,0.23181949]
[1759362624845,0.09017727,118530.0,118520.0,0.47285949]
[1759362625056,0.1155265,118530.0,118520.0,0.47285949]
[1759362625261,0.12393809,118530.0,118520.0,0.47285949]
[1759362628720,0.12393809,118530.0,118520.0,0.47275046]
[1759362632305,0.1103565,118530.0,118520.0,0.47275046]
[1759362632510,0.09453853,118530.0,118520.0,0.47275046]
[1759362635355,0.0691893,118530.0,118520.0,0.47275046]
[1759362636195,0.06919087,118530.0,118520.0,0.47275046]
[1759362636399,0.06128636,118530.0,118520.0,0.47275046]
[1759362640594,0.06128636,118530.0,118520.0,0.23171046]
[1759362640809,0.06128636,118530.0,118520.0,0.47295046]
[1759362641726,0.06918557,118530.0,118520.0,0.47295046]
[1759362642969,0.06128636,118530.0,118520.0,0.47295046]
[1759362643611,0.06918564,118530.0,118520.0,0.23171046]
[1759362643828,0.06918564,118530.0,118520.0,0.47295046]
[1759362644244,0.06418564,118530.0,118520.0,0.47295046]
[1759362644673,0.06617564,118530.0,118520.0,0.23171046]
[1759362644912,0.06935564,118530.0,118520.0,0.23171046]
[1759362645118,0.06935564,118530.0,118520.0,0.47419046]
[1759362645329,0.09470417,118530.0,118520.0,0.47419046]
[1759362647018,0.09470417,118530.0,118520.0,0.24248]
[1759362647454,0.09470417,118530.0,118520.0,0.41122789]
[1759362650982,0.09470417,118530.0,118520.0,0.47409697]
[1759362651703,0.08953417,118530.0,118520.0,0.47409697]
[1759362652568,0.09169417,118530.0,118520.0,0.47409697]
[1759362653805,0.09490417,118530.0,118520.0,0.47409697]
[1759362657525,0.09490417,118530.0,118520.0,0.23161697]
[1759362657733,0.09490417,118530.0,118520.0,0.47405697]
[1759362661220,0.09490417,118530.0,118520.0,0.23161697]
[1759362661444,0.09490417,118530.0,118520.0,0.47389697]
[1759362661445,0.11071592,118530.0,118520.0,0.47389697]
[1759362661766,0.10534592,118530.0,118520.0,0.47389697]
[1759362661960,0.08953417,118530.0,118520.0,0.47389697]
[1759362662383,0.09169417,118530.0,118520.0,0.47389697]
[1759362662715,0.08953417,118530.0,118520.0,0.47389697]
[1759362663933,0.09169417,118530.0,118520.0,0.47389697]
[1759362664140,0.09490417,118530.0,118520.0,0.47389697]
[1759362664566,0.09169417,118530.0,118520.0,0.47389697]
[1759362665594,0.09490417,118530.0,118520.0,0.47389697]
[1759362667259,0.11071715,118530.0,118520.0,0.47389697]
[1759362667823,0.09490417,118530.0,118520.0,0.47389697]
[1759362668452,0.11071836,118530.0,118520.0,0.47389697]
[1759362668659,0.09490417,118530.0,118520.0,0.47389697]
[1759362668957,0.11071843,118530.0,118520.0,0.47389697]
[1759362671306,0.10750843,118530.0,118520.0,0.47389697]
[1759362671533,0.11071843,118530.0,118520.0,0.47389697]
[1759362671742,0.10534843,118530.0,118520.0,0.47389697]
[1759362672568,0.10534843,118530.0,118520.0,0.47357697]
[1759362673127,0.10750843,118530.0,118520.0,0.47357697]
[1759362674232,0.10534843,118530.0,118520.0,0.47357697]
[1759362677260,0.10535849,118530.0,118520.0,0.47357697]
[1759362678401,0.10535815,118530.0,118520.0,0.47357697]
[1759362678819,0.08953417,118530.0,118520.0,0.47357697]
[1759362679254,0.09169417,118530.0,118520.0,0.47357697]
[1759362679459,0.09490417,118530.0,118520.0,0.23161697]
[1759362679661,0.11072748,118530.0,118520.0,0.47333697]
[1759362680067,0.09490417,118530.0,118520.0,0.47333697]
[1759362680289,0.11072746,118530.0,118520.0,0.47333697]
[1759362680637,0.11072746,118530.0,118520.0,0.47325697]
[1759362680852,0.11072746,118530.0,118520.0,0.73655697]
[1759362681054,0.09490417,118530.0,118520.0,0.73655697]
[1759362682920,0.09490417,118530.0,118520.0,0.49491697]
[1759362683132,0.09490417,118530.0,118520.0,0.73651697]
[1759362683763,0.09169417,118530.0,118520.0,0.73651697]
[1759362684000,0.09493598,118530.0,118520.0,0.73651697]
[1759362684229,0.09493598,118530.0,118520.0,0.49491697]
[1759362684444,0.09493598,118530.0,118520.0,0.73647697]
[1759362684653,0.09170598,118530.0,118520.0,0.73647697]
[1759362684963,0.08954598,118530.0,118520.0,0.73647697]
[1759362686220,0.09155598,118530.0,118520.0,0.49491697]
[1759362686537,0.09478598,118530.0,118520.0,0.49491697]
[1759362686701,0.09478598,118530.0,118520.0,0.47317697]
[1759362687331,0.09478598,118530.0,118520.0,0.23161697]
[1759362687541,0.11060736,118530.0,118520.0,0.47317697]
[1759362687748,0.11060735,118530.0,118520.0,0.47317697]
[1759362687955,0.11060743,118530.0,118520.0,0.47313697]
[1759362688163,0.11060743,118530.0,118520.0,0.23161697]
[1759362688375,0.11060749,118530.0,118520.0,0.47313697]
[1759362688588,0.09478598,118530.0,118520.0,0.47313697]
[1759362688797,0.11060759,118530.0,118520.0,0.47313697]
[1759362689024,0.11060744,118530.0,118520.0,0.47313697]
[1759362690010,0.11060748,118530.0,118520.0,0.47313697]
[1759362691011,0.11060748,118530.0,118520.0,0.23161697]
[1759362691219,0.11060748,118530.0,118520.0,0.47305697]
[1759362691431,0.11060748,118530.0,118520.0,0.23161697]
[1759362691631,0.11060748,118530.0,118520.0,0.47301697]
[1759362693546,0.11060748,118530.0,118520.0,0.67301697]
[1759362696039,0.09478575,118530.0,118520.0,0.67289697]
[1759362696729,0.11060822,118530.0,118520.0,0.67289697]
[1759362697350,0.09478575,118530.0,118520.0,0.67289697]
[1759362698318,0.09478575,118530.0,118520.0,0.45876065]
[1759362698505,0.09478575,118530.0,118520.0,0.62750854]
[1759362700231,0.11060914,118530.0,118520.0,0.62750854]
[1759362700438,0.11060914,118530.0,118520.0,0.38622854]
[1759362700652,0.11060914,118530.0,118520.0,0.62778854]
[1759362701277,0.11060914,118530.0,118520.0,0.62810854]
[1759362702556,0.11060914,118530.0,118520.0,0.38622854]
[1759362702755,0.11060914,118530.0,118520.0,0.62822854]
[1759362702983,0.11060914,118530.0,118520.0,0.61074789]
[1759362704101,0.11060914,118530.0,118520.0,0.36874789]
[1759362704306,0.11060914,118530.0,118520.0,0.61074789]
[1759362706075,0.11060914,118530.0,118520.0,0.6755219]
[1759362706798,0.53571914,118530.0,118520.0,0.4335219]
[1759362707011,0.70445279,118530.0,118520.0,0.26477401]
[1759362707226,0.70445279,118530.0,118520.0,0.2]
[1759362707637,0.72268229,118530.0,118520.0,0.2]
[1759362708049,0.7226835,118530.0,118520.0,0.2]
[1759362710664,0.9645635,118530.0,118520.0,0.2]
[1759362710871,0.9645235,118530.0,118520.0,0.2]
[1759362715611,0.7226835,118530.0,118520.0,0.2]
[1759362715782,0.9648035,118530.0,118520.0,0.2]
[1759362716432,0.7226835,118530.0,118520.0,0.2]
[1759362716642,0.9647635,118530.0,118520.0,0.2]
[1759362721079,0.96474666,118530.0,118520.0,0.2]
[1759362722754,0.72266666,118530.0,118520.0,0.2]
[1759362722962,0.96478666,118530.0,118520.0,0.36874789]
[1759362724525,0.96477854,118530.0,118520.0,0.36874789]
[1759362725963,0.72265854,118530.0,118520.0,0.36611702]
[1759362726186,0.55392489,118530.0,118520.0,0.36611702]
[1759362726435,0.12357489,118530.0,118520.0,0.36611702]
[1759362726649,0.12357489,118530.0,118520.0,0.61091702]
[1759362726650,0.08953763,118530.0,118520.0,0.61091702]
[1759362726857,0.08953763,118530.0,118520.0,0.6446896]
[1759362727277,0.0641891,118530.0,118520.0,0.6446896]
[1759362727489,0.0641891,118530.0,118520.0,0.61091702]
[1759362728141,0.0641891,118530.0,118520.0,0.61415702]
[1759362729012,0.0641891,118530.0,118520.0,0.36611702]
[1759362729224,0.0641891,118530.0,118520.0,0.61415702]
[1759362731235,0.0661991,118530.0,118520.0,0.61515702]
[1759362731443,0.0661991,118530.0,118520.0,0.6156327]
[1759362731659,0.0691491,118530.0,118520.0,0.3659127]
[1759362732941,0.3188291,118530.0,118520.0,0.3659127]
[1759362733789,0.6588291,118530.0,118520.0,0.3659127]
[1759362734015,0.6770586,118530.0,118520.0,0.3659127]
[1759362734409,0.7621686,118530.0,118520.0,0.3659127]
[1759362735474,0.93090225,118530.0,118520.0,0.19716481]
[1759362737176,0.95625448,118530.0,118520.0,0.19716481]
[1759362738012,0.9562581,118530.0,118520.0,0.19716481]
[1759362739570,1.0440581,118530.0,118520.0,0.19716481]
[1759362741432,1.04846547,118530.0,118520.0,0.19716481]
[1759362741632,0.71098547,118530.0,118520.0,0.19716481]
[1759362741850,1.04830547,118530.0,118520.0,0.19716481]
[1759362744068,1.48137147,118530.0,118520.0,0.19716481]
[1759362745369,1.51152337,118530.0,118520.0,0.19716481]
[1759362745543,1.59600424,118530.0,118520.0,0.19716481]
[1759362747936,1.92264556,118530.0,118520.0,0.19716481]
[1759362750359,1.92264641,118530.0,118520.0,0.19275714]
[1759362750506,1.91823904,118530.0,118520.0,0.19275714]
[1759362751113,1.49643817,118530.0,118520.0,0.19275714]
[1759362751358,2.18471817,118530.0,118520.0,0.19275714]
[1759362751520,2.18912605,118530.0,118520.0,0.19275714]
[1759362753023,2.19712605,118530.0,118520.0,0.19275714]
[1759362753686,1.50884605,118530.0,118520.0,0.19275714]
[1759362753839,1.59332692,118530.0,118520.0,0.19275714]
[1759362754046,2.28148692,118530.0,118520.0,0.19275714]
[1759362755784,1.59332692,118530.0,118520.0,0.19275714]
[1759362755983,2.28148692,118530.0,118520.0,0.19275714]
[1759362756188,1.87016388,118530.0,118520.0,0.19275714]
[1759362757390,1.88594508,118530.0,118520.0,0.19275714]
[1759362758408,1.88602508,118530.0,118520.0,0.19275714]
[1759362759817,1.97493508,118530.0,118520.0,0.19275714]
[1759362760025,1.88602508,118530.0,118520.0,0.19275714]
[1759362760430,1.88603037,118530.0,118520.0,0.19275714]
[1759362760638,1.93869811,118530.0,118520.0,0.19275714]
[1759362761760,1.25065811,118530.0,118520.0,0.19275714]
[1759362761972,1.93089811,118530.0,118520.0,0.19275714]
[1759362762406,1.93053811,118530.0,118520.0,0.19275714]
[1759362763597,1.93041811,118530.0,118520.0,0.19275714]
[1759362764003,1.24265811,118530.0,118520.0,0.19275714]
[1759362764227,1.93041811,118530.0,118520.0,0.19275714]
[1759362764578,1.24265811,118530.0,118520.0,0.19275714]
[1759362764786,1.93037811,118530.0,118520.0,0.19275714]
[1759362767052,1.93837811,118530.0,118520.0,0.19275714]
[1759362769583,1.25065811,118530.0,118520.0,0.19275714]
[1759362769790,1.93793811,118530.0,118520.0,0.19275714]
[1759362769971,1.10882247,118530.0,118520.0,0.19275714]
[1759362770204,1.27712047,118530.0,118520.0,0.19275714]
[1759362770632,1.28238047,118530.0,118520.0,0.19275714]
[1759362771600,1.6090103,118530.0,118520.0,0.19275714]
[1759362773307,1.6391622,118530.0,118520.0,0.19275714]
[1759362773634,1.72364307,118530.0,118520.0,0.19275714]
[1759362774076,1.72368863,118530.0,118520.0,0.19275714]
[1759362776018,1.0611388,118530.0,118520.0,0.19275714]
[1759362776210,1.66349793,118530.0,118520.0,0.19275714]
[1759362777971,1.66349793,118530.0,118520.0,0.18726774]
[1759362780722,0.97665793,118530.0,118520.0,0.18726774]
[1759362780931,1.66322032,118530.0,118520.0,0.18726774]
[1759362781856,1.74096577,118530.0,118520.0,0.18726774]
[1759362784692,1.74096418,118530.0,118520.0,0.18726774]
[1759362786007,1.66321873,118530.0,118520.0,0.18726774]
[1759362786699,0.97665873,118530.0,118520.0,0.18726774]
[1759362786902,1.66309873,118530.0,118520.0,0.18726774]
[1759362787303,0.97665873,118530.0,118520.0,0.18726774]
[1759362787540,0.89726822,118530.0,118520.0,0.18726774]
[1759362787723,1.58342822,118530.0,118520.0,0.18726774]
[1759362788130,1.58541822,118530.0,118520.0,0.18726774]
[1759362788336,1.58865822,118530.0,118520.0,0.18726774]
[1759362788573,0.87180122,118530.0,118520.0,0.18726774]
[1759362788804,1.14417322,118530.0,118520.0,0.18726774]
[1759362789207,1.04079322,118530.0,118520.0,0.18726774]
[1759362789433,1.17098022,118530.0,118520.0,0.18726774]
[1759362789637,1.18582022,118530.0,118520.0,0.18726774]
[1759362789840,0.83722022,118530.0,118520.0,0.18726774]
[1759362790062,1.03646534,118530.0,118520.0,0.18726774]
[1759362790696,1.03646189,118530.0,118520.0,0.18726774]
[1759362791359,0.70162189,118530.0,118520.0,0.18726774]
[1759362791717,1.03646189,118530.0,118520.0,0.18726774]
[1759362792241,0.70162189,118530.0,118520.0,0.35601563]
[1759362792456,0.78942189,118530.0,118520.0,0.35601563]
[1759362792697,1.03646189,118530.0,118520.0,0.35601563]
[1759362793674,0.53288824,118530.0,118520.0,0.35601563]
[1759362793878,0.84245601,118530.0,118520.0,0.16001484]
[1759362796598,0.66950601,118530.0,118520.0,0.16001484]
[1759362804463,0.65127412,118530.0,118520.0,0.16001484]
[1759362806232,0.91039777,118530.0,118510.0,0.23297681]
[1759362806432,0.90932995,118530.0,118520.0,0.16874789]
[1759362806856,0.90932995,118530.0,118510.0,0.23297681]
[1759362808221,0.90932995,118530.0,118520.0,0.16874789]
[1759362808426,0.90613995,118530.0,118520.0,0.16874789]
[1759362808567,0.90511778,118530.0,118520.0,0.16874789]
[1759362810144,0.90511778,118530.0,118510.0,0.06421618]
[1759362810145,0.50874789,118520.0,118510.0,0.06421618]
[1759362810388,0.59704789,118520.0,118510.0,0.16876212]
[1759362810607,0.59913789,118520.0,118500.0,0.43207496]
[1759362810822,0.75899212,118510.0,118500.0,0.43207496]
[1759362811042,0.76108212,118510.0,118500.0,0.43207637]
[1759362811255,0.34,118500.0,118490.0,0.43209039]
[1759362811484,0.34,118500.0,118490.0,0.16879039]
[1759362811886,0.50877637,118500.0,118490.0,0.16879039]
[1759362812087,0.34,118500.0,118490.0,0.16879039]
[1759362813766,0.25706212,118510.0,118500.0,0.16877637]
[1759362813980,0.50103212,118510.0,118500.0,0.16877637]
[1759362814184,0.34,118500.0,118490.0,0.13791577]
[1759362814387,0.58712,118500.0,118490.0,0.13791577]
[1759362825994,0.5924,118500.0,118490.0,0.13791577]
[1759362826383,0.59282725,118500.0,118490.0,0.13791577]
[1759362830183,0.60073284,118500.0,118490.0,0.13791577]
[1759362830417,0.76950921,118500.0,118490.0,0.13791577]
[1759362832234,0.60073284,118500.0,118490.0,0.13791577]
[1759362834012,0.76950921,118500.0,118490.0,0.13791577]
[1759362836320,0.85461921,118500.0,118490.0,0.13791577]
[1759362837021,0.85461921,118500.0,118480.0,0.23332528]
[1759362837205,0.85100196,118500.0,118490.0,0.16879061]
[1759362837827,0.85401196,118500.0,118490.0,0.16879061]
[1759362838015,0.50879061,118490.0,118480.0,0.23332528]
[1759362838218,0.50879061,118490.0,118480.0,0.23332852]
[1759362838419,0.59892061,118490.0,118480.0,0.23332852]
[1759362838626,0.6068207,118490.0,118480.0,0.23332852]
[1759362839201,0.6068207,118490.0,118480.0,0.23340765]
[1759362839406,0.8535007,118490.0,118480.0,0.23340765]
[1759362839837,0.86213168,118490.0,118480.0,0.23340765]
[1759362842362,0.69334107,118490.0,118480.0,0.23340765]
[1759362842540,0.86213168,118490.0,118480.0,0.23340765]
[1759362842924,0.86201168,118490.0,118480.0,0.23340765]
[1759362843737,0.69343472,118490.0,118480.0,0.23340765]
[1759362843938,0.44386472,118490.0,118480.0,0.23340765]
[1759362844158,0.68248463,118490.0,118480.0,0.23340765]
[1759362846152,0.68533463,118490.0,118480.0,0.23340765]
[1759362846568,0.67670365,118490.0,118480.0,0.23340765]
[1759362846787,0.67369365,118490.0,118480.0,0.23340765]
[1759362847960,0.67168365,118490.0,118480.0,0.23340765]
[1759362848132,0.67156365,118490.0,118480.0,0.23340765]
[1759362848647,0.24641365,118490.0,118480.0,0.23340765]
[1759362848990,0.00021365,118490.0,118480.0,0.23340765]
[1759362851051,0.00222365,118490.0,118480.0,0.23340765]
[1759362851214,0.00523365,118490.0,118480.0,0.23340765]
[1759362851415,0.00222365,118490.0,118480.0,7.913e-05]
[1759362851654,0.00021365,118490.0,118480.0,0.16888399]
[1759362852978,0.00523365,118490.0,118480.0,0.16888399]
[1759362855473,0.00523365,118490.0,118480.0,0.23122352]
[1759362856231,0.25115365,118490.0,118480.0,0.23122352]
[1759362856595,0.24814365,118490.0,118480.0,0.23122352]